[Event "FIDE WCCC Girls-10 2024"]
[Site "Montesilvano"]
[Date "2024.11.19"]
[Round "5.13"]
[White "Mukhorina, Mariya Dm"]
[Black "Bakhshi, Rana"]
[Result "1-0"]
[ECO "B75"]
[WhiteElo "1567"]
[BlackElo "1727"]
[Annotator "NA RC"]
[PlyCount "63"]
[EventDate "2024.11.18"]
[EventType "swiss"]
[EventCountry "ITA"]
[SourceTitle "playchess.com"]
[Source "ChessBase"]
[SourceQuality "1"]
[TimeControl "5400+30"]

1. e4 {[%emt 0:00:09]} c5 {[%emt 0:00:52]} 2. Nf3 {[%emt 0:00:31]} d6 {[%emt 0:00:22]} 3. d4 {[%emt 0:00:20]} cxd4 {[%emt 0:01:06]} 4. Nxd4 {[%emt 0:00:02]} Nf6 {[%emt 0:02:43]} 5. Nc3 {[%emt 0:06:00]} g6 {[%emt 0:02:23]} 6. Be3 {[%emt 0:00:30]} Nc6 {[%emt 0:00:53]} 7. f3 {[%emt 0:00:18]} h5 {[%emt 0:00:43]} 8. Bc4 {[%emt 0:00:43]} Bd7 {[%emt 0:00:25]} 9. Qd2 {[%emt 0:00:28]} Bg7 {[%emt 0:00:21]} 10. O-O-O {[%emt 0:00:42]} Na5 {[%emt 0:00:17]} 11. Bd3 {[%emt 0:00:27]} Rc8 {[%emt 0:00:29]} 12. Kb1 {[%emt 0:00:28]} Nc4 {[%emt 0:00:57]} 13. Bxc4 {[%emt 0:00:08]} Rxc4 {[%emt 0:00:59]} 14. Nde2 {[%emt 0:00:33]} a6 {[%emt 0:01:30]} 15. Bd4 {[%emt 0:05:59]} O-O {[%emt 0:02:26]} 16. e5 {[%emt 0:01:43]} Ne8 {[%emt 0:01:15]} 17. exd6 {[%emt 0:09:54]} Nxd6 {[%emt 0:00:35]} 18. Bxg7 {[%emt 0:00:30]} Kxg7 {[%emt 0:05:10]} 19. Nd5 {[%emt 0:02:34]} Nb5 {[%emt 0:01:36]} 20. Ne3 {[%emt 0:03:21]} Rc7 {[%emt 0:01:17]} 21. h4 {[%emt 0:03:36]} Qe8 {[%emt 0:06:42]} 22. g4 {[%emt 0:00:47]} hxg4 {[%emt 0:00:30]} 23. fxg4 {[%emt 0:01:17]} f6 {[%emt 0:01:29]} 24. h5 {[%emt 0:05:34]} Be6 {[%emt 0:02:25]} 25. hxg6 {[%emt 0:00:53]} Rh8 {[%emt 0:02:20]} 26. Nf4 {[%emt 0:01:32]} Rc6 {[%emt 0:04:47]} 27. Nf5+ {[%emt 0:02:08]} Bxf5 {[%emt 0:01:58]} 28. gxf5 {[%emt 0:00:12]} Rxh1 {[%emt 0:14:19]} 29. Rxh1 {[%emt 0:01:10]} Kg8 {[%emt 0:13:53]} 30. Rh8+ {[%emt 0:07:56]} Kg7 {[%emt 0:01:46]} 31. Rxe8 {[%emt 0:00:06]} Rd6 {[%emt 0:01:11]} 32. Nh5# {[%emt 0:00:13]} 1-0

[Event "FIDE WCCC Girls-10 2024"]
[Site "Montesilvano"]
[Date "2024.11.19"]
[Round "5.14"]
[White "Tran Hoang Bao An"]
[Black "Saltkhutsishvili, Sara"]
[Result "1-0"]
[ECO "D36"]
[WhiteElo "1714"]
[BlackElo "1546"]
[Annotator "NA RC"]
[PlyCount "139"]
[EventDate "2024.11.18"]
[EventType "swiss"]
[EventCountry "ITA"]
[SourceTitle "playchess.com"]
[Source "ChessBase"]
[SourceQuality "1"]
[TimeControl "5400+30"]

1. d4 {[%emt 0:00:24]} d5 {[%emt 0:04:44]} 2. c4 {[%emt 0:01:29]} e6 {[%emt 0:00:56]} 3. Nc3 {[%emt 0:01:23]} Be7 {[%emt 0:03:24]} 4. cxd5 {[%emt 0:01:47]} exd5 {[%emt 0:01:31]} 5. Qc2 {[%emt 0:01:08]} Nf6 {[%emt 0:07:51]} 6. Bg5 {[%emt 0:02:14]} O-O {[%emt 0:10:17]} 7. e3 {[%emt 0:04:28]} c6 {[%emt 0:07:19]} 8. Bd3 {[%emt 0:03:30]} h6 {[%emt 0:08:22]} 9. Bh4 {[%emt 0:03:55]} Re8 {[%emt 0:11:09]} 10. Nf3 {[%emt 0:03:45]} Ne4 {[%emt 0:07:13]} 11. Bxe7 {[%emt 0:04:14]} Qxe7 {[%emt 0:02:27]} 12. Ne5 {[%emt 0:01:21]} f6 {[%emt 0:12:19]} 13. Ng6 {[%emt 0:04:33]} Qf7 {[%emt 0:03:18]} 14. Nxe4 {[%emt 0:02:30]} Qxg6 {[%emt 0:03:34]} 15. Ng3 {[%emt 0:00:12]} Qg4 {[%emt 0:03:15]} 16. Bh7+ {[%emt 0:01:41]} Kh8 {[%emt 0:02:40]} 17. Bg6 {[%emt 0:02:12]} Rf8 {[%emt 0:02:13]} 18. h3 {[%emt 0:01:03]} Qe6 {[%emt 0:01:13]} 19. Nf5 {[%emt 0:00:34]} Qe4 {[%emt 0:01:53]} 20. Qxe4 {[%emt 0:00:34]} dxe4 {[%emt 0:00:12]} 21. Nd6 {[%emt 0:00:21]} Be6 {[%emt 0:00:43]} 22. Bxe4 {[%emt 0:01:55]} Na6 {[%emt 0:01:42]} 23. Nxb7 {[%emt 0:00:17]} Rab8 {[%emt 0:00:40]} 24. Bxc6 {[%emt 0:00:49]} Nb4 {[%emt 0:01:07]} 25. Be4 {[%emt 0:00:48]} f5 {[%emt 0:01:19]} 26. Bf3 {[%emt 0:01:13]} Nc2+ {[%emt 0:00:34]} 27. Kd2 {[%emt 0:00:06]} Nxa1 {[%emt 0:00:10]} 28. Rxa1 {[%emt 0:00:04]} Bc8 {[%emt 0:00:26]} 29. Nd6 {[%emt 0:02:16]} Rxb2+ {[%emt 0:00:39]} 30. Ke1 {[%emt 0:00:20]} Ba6 {[%emt 0:01:02]} 31. a3 {[%emt 0:01:23]} Rf6 {[%emt 0:00:57]} 32. Ne8 {[%emt 0:00:37]} Rfb6 {[%emt 0:00:24]} 33. d5 {[%emt 0:01:35]} Rc2 {[%emt 0:00:40]} 34. Bd1 {[%emt 0:06:52]} Rc8 {[%emt 0:00:30]} 35. Ba4 {[%emt 0:00:17]} Rd8 {[%emt 0:00:38]} 36. Nc7 {[%emt 0:00:46]} Bb7 {[%emt 0:00:08]} 37. Rd1 {[%emt 0:00:34]} Rbd6 {[%emt 0:00:31]} 38. Bb3 {[%emt 0:00:30]} a6 {[%emt 0:00:49]} 39. f3 {[%emt 0:00:24]} Kg8 {[%emt 0:00:21]} 40. e4 {[%emt 0:00:09]} Rb6 {[%emt 0:00:19]} 41. Rd3 {[%emt 0:00:10]} Rd7 {[%emt 0:00:33]} 42. d6+ {[%emt 0:00:13]} Kh7 {[%emt 0:00:26]} 43. e5 {[%emt 0:00:16]} a5 {[%emt 0:00:34]} 44. Be6 {[%emt 0:00:36]} Rd8 {[%emt 0:00:18]} 45. Bxf5+ {[%emt 0:00:30]} g6 {[%emt 0:00:19]} 46. e6 {[%emt 0:06:17]} Rbxd6 {[%emt 0:01:00]} 47. Rxd6 {[%emt 0:00:11]} Rxd6 {[%emt 0:00:15]} 48. e7 {[%emt 0:00:10]} Bc6 {[%emt 0:00:20]} 49. Be4 {[%emt 0:02:26]} Bd7 {[%emt 0:00:09]} 50. e8=Q {[%emt 0:01:50]} Bxe8 {[%emt 0:00:17]} 51. Nxe8 {[%emt 0:00:05]} Rd8 {[%emt 0:00:44]} 52. Bc6 {[%emt 0:00:47]} Rc8 {[%emt 0:00:25]} 53. Bb5 {[%emt 0:00:07]} Rb8 {[%emt 0:00:14]} 54. a4 {[%emt 0:00:02]} g5 {[%emt 0:00:24]} 55. Nd6 {[%emt 0:00:06]} Kg6 {[%emt 0:00:12]} 56. Nc4 {[%emt 0:00:05]} Ra8 {[%emt 0:00:13]} 57. Kf2 {[%emt 0:00:09]} Kf5 {[%emt 0:00:17]} 58. Ke3 {[%emt 0:00:22]} Ra7 {[%emt 0:00:30]} 59. g4+ {[%emt 0:00:14]} Ke6 {[%emt 0:00:11]} 60. Kd4 {[%emt 0:00:02]} Rf7 {[%emt 0:00:39]} 61. Bc6 {[%emt 0:00:12]} Ra7 {[%emt 0:00:39]} 62. Kc5 {[%emt 0:00:14]} Kf6 {[%emt 0:01:11]} 63. Kb6 {[%emt 0:00:12]} Re7 {[%emt 0:00:15]} 64. Nxa5 {[%emt 0:00:03]} Re1 {[%emt 0:00:09]} 65. Nb7 {[%emt 0:00:22]} Rh1 {[%emt 0:00:09]} 66. a5 {[%emt 0:00:05]} Rxh3 {[%emt 0:00:11]} 67. a6 {[%emt 0:00:03]} Rh1 {[%emt 0:00:07]} 68. a7 {[%emt 0:00:05]} Rb1+ {[%emt 0:00:08]} 69. Ka6 {[%emt 0:00:09]} Ra1+ {[%emt 0:00:21]} 70. Na5 {[%emt 0:00:04]} 1-0

[Event "FIDE WCCC Girls-10 2024"]
[Site "Montesilvano"]
[Date "2024.11.19"]
[Round "5.15"]
[White "Norkulova, Malika"]
[Black "Tu, Tiffany"]
[Result "1-0"]
[ECO "D35"]
[WhiteElo "1480"]
[BlackElo "1687"]
[Annotator "NA RC"]
[PlyCount "63"]
[EventDate "2024.11.18"]
[EventType "swiss"]
[EventCountry "ITA"]
[SourceTitle "playchess.com"]
[Source "ChessBase"]
[SourceQuality "1"]
[TimeControl "5400+30"]

1. c4 {[%emt 0:05:08]} e6 {[%emt 0:00:15]} 2. Nc3 {[%emt 0:00:08]} d5 {[%emt 0:00:15]} 3. cxd5 {[%emt 0:00:05]} exd5 {[%emt 0:00:09]} 4. d4 {[%emt 0:00:15]} Nf6 {[%emt 0:00:22]} 5. Bg5 {[%emt 0:00:12]} c6 {[%emt 0:07:21]} 6. e3 {[%emt 0:00:24]} Bd6 {[%emt 0:00:36]} 7. Bd3 {[%emt 0:00:27]} Nbd7 {[%emt 0:03:35]} 8. Nge2 {[%emt 0:00:12]} O-O {[%emt 0:00:13]} 9. f3 {[%emt 0:00:15]} Qc7 {[%emt 0:05:06]} 10. Bf4 {[%emt 0:04:39]} Bxf4 {[%emt 0:01:24]} 11. Nxf4 {[%emt 0:00:22]} Re8 {[%emt 0:00:20]} 12. Qe2 {[%emt 0:00:32]} Nb6 {[%emt 0:07:47]} 13. O-O {[%emt 0:06:39]} Bd7 {[%emt 0:08:01]} 14. Rac1 {[%emt 0:06:31]} Qd6 {[%emt 0:01:29]} 15. Qd2 {[%emt 0:01:32]} Rac8 {[%emt 0:01:20]} 16. b3 {[%emt 0:01:31]} a6 {[%emt 0:04:41]} 17. Bb1 {[%emt 0:01:23]} Re7 {[%emt 0:56:06]} 18. e4 {[%emt 0:05:21]} dxe4 {[%emt 0:00:00]} 19. fxe4 {[%emt 0:01:50]} Rce8 {[%emt 0:00:00]} 20. Rcd1 {[%emt 0:01:10]} Qb4 {[%emt 0:00:00]} 21. e5 {[%emt 0:04:39]} Ng4 {[%emt 0:00:00]} 22. h3 {[%emt 0:00:28]} Nh6 {[%emt 0:00:00]} 23. Ncd5 {[%emt 0:00:58]} Qa3 {[%emt 0:00:00]} 24. Nxb6 {[%emt 0:03:09]} Be6 {[%emt 0:00:00]} 25. Nxe6 {[%emt 0:01:15]} Rxe6 {[%emt 0:00:00]} 26. Nc4 {[%emt 0:00:12]} Qe7 {[%emt 0:00:00]} 27. Nd6 {[%emt 0:00:43]} Rd8 {[%emt 0:00:00]} 28. Qf4 {[%emt 0:02:47]} f6 {[%emt 0:00:35]} 29. Nf5 {[%emt 0:00:43]} Qf7 {[%emt 0:03:27]} 30. Nxh6+ {[%emt 0:00:07]} gxh6 {[%emt 0:00:08]} 31. Qxh6 {[%emt 0:00:25]} Rf8 {[%emt 0:01:19]} 32. exf6 {[%emt 0:00:45]} 1-0

[Event "FIDE WCCC Girls-10 2024"]
[Site "Montesilvano"]
[Date "2024.11.19"]
[Round "5.16"]
[White "Meng, Miranda"]
[Black "Tykalova, Barbora"]
[Result "1-0"]
[ECO "E67"]
[WhiteElo "1675"]
[BlackElo "1596"]
[Annotator "NA RC"]
[PlyCount "85"]
[EventDate "2024.11.18"]
[EventType "swiss"]
[EventCountry "ITA"]
[SourceTitle "playchess.com"]
[Source "ChessBase"]
[SourceQuality "1"]
[TimeControl "5400+30"]

1. d4 {[%emt 0:00:02]} Nf6 {[%emt 0:00:08]} 2. c4 {[%emt 0:00:04]} g6 {[%emt 0:00:46]} 3. Nf3 {[%emt 0:00:04]} Bg7 {[%emt 0:01:42]} 4. g3 {[%emt 0:00:03]} O-O {[%emt 0:02:05]} 5. Bg2 {[%emt 0:00:03]} d6 {[%emt 0:01:25]} 6. O-O {[%emt 0:00:07]} Nbd7 {[%emt 0:01:46]} 7. Nc3 {[%emt 0:00:23]} e5 {[%emt 0:01:34]} 8. d5 {[%emt 0:00:46]} Ne8 {[%emt 0:04:23]} 9. e4 {[%emt 0:01:13]} a5 {[%emt 0:02:06]} 10. a4 {[%emt 0:00:43]} Nc5 {[%emt 0:02:01]} 11. b3 {[%emt 0:04:22]} f5 {[%emt 0:02:08]} 12. Nd2 {[%emt 0:04:35]} f4 {[%emt 0:03:58]} 13. Ba3 {[%emt 0:10:34]} Na6 {[%emt 0:06:21]} 14. Qc2 {[%emt 0:06:24]} Bg4 {[%emt 0:04:32]} 15. h3 {[%emt 0:02:56]} Bd7 {[%emt 0:02:12]} 16. Kh2 {[%emt 0:03:06]} Qg5 {[%emt 0:03:46]} 17. Nf3 {[%emt 0:04:21]} Qh5 {[%emt 0:08:25]} 18. Qe2 {[%emt 0:15:31]} Nf6 {[%emt 0:05:38]} 19. Rh1 {[%emt 0:04:54]} Rf7 {[%emt 0:09:03]} 20. Kg1 {[%emt 0:01:31]} fxg3 {[%emt 0:02:40]} 21. fxg3 {[%emt 0:00:31]} g5 {[%emt 0:03:11]} 22. g4 {[%emt 0:01:36]} Qg6 {[%emt 0:01:44]} 23. c5 {[%emt 0:02:49]} Nb4 {[%emt 0:02:53]} 24. Rc1 {[%emt 0:06:12]} Re8 {[%emt 0:05:33]} 25. cxd6 {[%emt 0:02:00]} cxd6 {[%emt 0:01:05]} 26. Nd2 {[%emt 0:01:24]} Ra8 {[%emt 0:05:50]} 27. Nc4 {[%emt 0:01:33]} Bf8 {[%emt 0:02:59]} 28. Nxa5 {[%emt 0:04:57]} Nbxd5 {[%emt 0:02:02]} 29. Nxd5 {[%emt 0:02:14]} Rxa5 {[%emt 0:01:12]} 30. Bb4 {[%emt 0:01:52]} Ra8 {[%emt 0:03:08]} 31. Nb6 {[%emt 0:00:56]} Rd8 {[%emt 0:02:03]} 32. Nxd7 {[%emt 0:04:34]} Rfxd7 {[%emt 0:02:17]} 33. Kh2 {[%emt 0:01:38]} Bg7 {[%emt 0:02:15]} 34. Rhf1 {[%emt 0:01:25]} d5 {[%emt 0:01:18]} 35. exd5 {[%emt 0:01:11]} Nxd5 {[%emt 0:00:06]} 36. Bxd5+ {[%emt 0:11:56]} Rxd5 {[%emt 0:00:40]} 37. Qc4 {[%emt 0:00:00]} Qe6 {[%emt 0:02:47]} 38. Rcd1 {[%emt 0:00:00]} Kh8 {[%emt 0:00:35]} 39. Ba5 {[%emt 0:00:00]} R8d6 {[%emt 0:00:26]} 40. Rxd5 {[%emt 0:00:00]} Rxd5 {[%emt 0:01:47]} 41. Rd1 {[%emt 0:00:00]} Rd6 {[%emt 0:00:00]} 42. Qxe6 {[%emt 0:00:00]} Rxe6 {[%emt 0:00:00]} 43. Rd8+ {[%emt 0:00:00]} 1-0

[Event "FIDE WCCC Girls-10 2024"]
[Site "Montesilvano"]
[Date "2024.11.19"]
[Round "5.17"]
[White "Blakhina Viktoryia"]
[Black "Stoica, Melina-Theodora"]
[Result "1-0"]
[ECO "B11"]
[WhiteElo "1436"]
[BlackElo "1675"]
[Annotator "NA RC"]
[PlyCount "115"]
[EventDate "2024.11.18"]
[EventType "swiss"]
[EventCountry "ITA"]
[SourceTitle "playchess.com"]
[Source "ChessBase"]
[SourceQuality "1"]
[TimeControl "5400+30"]

1. e4 {[%emt 0:00:05]} c6 {[%emt 0:00:10]} 2. Nc3 {[%emt 0:00:11]} d5 {[%emt 0:00:06]} 3. Nf3 {[%emt 0:00:06]} Bg4 {[%emt 0:00:07]} 4. Qe2 {[%emt 0:01:30]} e6 {[%emt 0:08:55]} 5. exd5 {[%emt 0:02:37]} cxd5 {[%emt 0:11:17]} 6. Qb5+ {[%emt 0:01:56]} Qd7 {[%emt 0:00:23]} 7. Ne5 {[%emt 0:01:02]} Qxb5 {[%emt 0:02:51]} 8. Bxb5+ {[%emt 0:00:08]} Kd8 {[%emt 0:00:33]} 9. Nxg4 {[%emt 0:01:39]} a6 {[%emt 0:01:46]} 10. Be2 {[%emt 0:05:37]} Nc6 {[%emt 0:02:21]} 11. h3 {[%emt 0:10:24]} f5 {[%emt 0:10:20]} 12. Nh2 {[%emt 0:07:29]} Nf6 {[%emt 0:00:11]} 13. d3 {[%emt 0:04:47]} d4 {[%emt 0:58:00]} 14. Nb1 {[%emt 0:07:32]} Nb4 {[%emt 0:00:00]} 15. Kd1 {[%emt 0:03:09]} Rc8 {[%emt 0:00:00]} 16. c3 {[%emt 0:01:32]} dxc3 {[%emt 0:00:00]} 17. Nxc3 {[%emt 0:00:09]} Nfd5 {[%emt 0:00:00]} 18. Bg5+ {[%emt 0:03:46]} Be7 {[%emt 0:00:00]} 19. Bxe7+ {[%emt 0:00:08]} Kxe7 {[%emt 0:00:00]} 20. Nxd5+ {[%emt 0:01:25]} exd5 {[%emt 0:00:00]} 21. a3 {[%emt 0:02:30]} Nc2 {[%emt 0:00:00]} 22. Rc1 {[%emt 0:15:35]} Nd4 {[%emt 0:00:00]} 23. Nf3 {[%emt 0:00:30]} Rxc1+ {[%emt 0:00:00]} 24. Kxc1 {[%emt 0:00:30]} Rc8+ {[%emt 0:00:00]} 25. Kb1 {[%emt 0:00:30]} Kd6 {[%emt 0:00:00]} 26. Nh2 {[%emt 0:00:30]} Ke7 {[%emt 0:00:00]} 27. Bf3 {[%emt 0:03:36]} Kd6 {[%emt 0:00:00]} 28. Rc1 {[%emt 0:01:52]} Rxc1+ {[%emt 0:00:00]} 29. Kxc1 {[%emt 0:00:09]} Nb3+ {[%emt 0:00:00]} 30. Kc2 {[%emt 0:01:30]} Nd4+ {[%emt 0:00:00]} 31. Kc3 {[%emt 0:23:36]} Nb5+ {[%emt 0:00:00]} 32. Kb4 {[%emt 0:00:00]} Nd4 {[%emt 0:00:00]} 33. Nf1 {[%emt 0:00:00]} Nc6+ {[%emt 0:00:00]} 34. Kc3 {[%emt 0:00:00]} Ne5 {[%emt 0:00:00]} 35. d4 {[%emt 0:00:00]} Nxf3 {[%emt 0:00:00]} 36. gxf3 {[%emt 0:00:00]} b6 {[%emt 0:00:00]} 37. f4 {[%emt 0:00:00]} g6 {[%emt 0:00:00]} 38. h4 {[%emt 0:00:00]} Ke6 {[%emt 0:00:00]} 39. Nd2 {[%emt 0:00:00]} Kd6 {[%emt 0:00:00]} 40. Nf3 {[%emt 0:00:00]} h6 {[%emt 0:00:00]} 41. Ne5 {[%emt 0:00:00]} Ke6 {[%emt 0:00:00]} 42. Nxg6 {[%emt 0:00:00]} Kf6 {[%emt 0:00:00]} 43. h5 {[%emt 0:00:00]} Ke6 {[%emt 0:00:00]} 44. Ne5 {[%emt 0:00:00]} Ke7 {[%emt 0:00:00]} 45. Kb4 {[%emt 0:00:00]} Ke6 {[%emt 0:00:00]} 46. a4 {[%emt 0:00:00]} Ke7 {[%emt 0:00:00]} 47. a5 {[%emt 0:00:00]} b5 {[%emt 0:00:00]} 48. Kc5 {[%emt 0:00:00]} Ke6 {[%emt 0:00:00]} 49. Kb6 {[%emt 0:00:00]} Ke7 {[%emt 0:00:00]} 50. Kxa6 {[%emt 0:00:00]} Ke6 {[%emt 0:00:00]} 51. Kxb5 {[%emt 0:00:00]} Kd6 {[%emt 0:00:00]} 52. Kb6 {[%emt 0:00:00]} Ke7 {[%emt 0:00:00]} 53. a6 {[%emt 0:00:00]} Ke6 {[%emt 0:00:00]} 54. a7 {[%emt 0:00:00]} Ke7 {[%emt 0:00:00]} 55. a8=Q {[%emt 0:00:00]} Kd6 {[%emt 0:00:00]} 56. Qd8+ {[%emt 0:00:00]} Ke6 {[%emt 0:00:00]} 57. Qd7+ {[%emt 0:00:00]} Kf6 {[%emt 0:00:00]} 58. Qf7# {[%emt 0:00:00]} 1-0

[Event "FIDE WCCC Girls-10 2024"]
[Site "Montesilvano"]
[Date "2024.11.19"]
[Round "5.18"]
[White "Macakova, Bianka"]
[Black "Kuvandikova, Nafisa"]
[Result "0-1"]
[ECO "B42"]
[WhiteElo "1610"]
[BlackElo "1512"]
[Annotator "NA RC"]
[PlyCount "104"]
[EventDate "2024.11.18"]
[EventType "swiss"]
[EventCountry "ITA"]
[SourceTitle "playchess.com"]
[Source "ChessBase"]
[SourceQuality "1"]
[TimeControl "5400+30"]

1. e4 {[%emt 0:00:03]} c5 {[%emt 0:00:10]} 2. Nf3 {[%emt 0:00:15]} e6 {[%emt 0:00:25]} 3. d4 {[%emt 0:00:46]} cxd4 {[%emt 0:00:17]} 4. Nxd4 {[%emt 0:00:50]} a6 {[%emt 0:00:38]} 5. Bd3 {[%emt 0:01:26]} Nf6 {[%emt 0:00:20]} 6. Qe2 {[%emt 0:28:56]} d6 {[%emt 0:00:52]} 7. O-O {[%emt 0:07:06]} Be7 {[%emt 0:04:39]} 8. f4 {[%emt 0:10:48]} Qc7 {[%emt 0:05:09]} 9. Kh1 {[%emt 0:04:47]} O-O {[%emt 0:03:03]} 10. c4 {[%emt 0:04:53]} Nbd7 {[%emt 0:04:13]} 11. Nc3 {[%emt 0:06:43]} Nc5 {[%emt 0:02:08]} 12. Bb1 {[%emt 0:02:50]} b6 {[%emt 0:04:11]} 13. e5 {[%emt 0:09:12]} Nfd7 {[%emt 0:03:12]} 14. b4 {[%emt 0:04:20]} Nb7 {[%emt 0:02:00]} 15. Qd3 {[%emt 0:09:18]} g6 {[%emt 0:00:38]} 16. exd6 {[%emt 0:05:19]} Nxd6 {[%emt 0:00:17]} 17. Qf3 {[%emt 0:00:49]} Qxc4 {[%emt 0:00:54]} 18. Nde2 {[%emt 0:00:33]} Bb7 {[%emt 0:00:23]} 19. Qh3 {[%emt 0:00:30]} Bf6 {[%emt 0:01:07]} 20. Rd1 {[%emt 0:00:30]} Qc7 {[%emt 0:02:10]} 21. Bb2 {[%emt 0:00:28]} Bg7 {[%emt 0:02:50]} 22. Bc2 {[%emt 0:00:27]} Nf6 {[%emt 0:01:13]} 23. Nd4 {[%emt 0:00:37]} Nde4 {[%emt 0:00:51]} 24. Qe3 {[%emt 0:00:30]} Nxc3 {[%emt 0:01:10]} 25. Bxc3 {[%emt 0:00:25]} Nd5 {[%emt 0:00:50]} 26. Nxe6 {[%emt 0:00:34]} fxe6 {[%emt 0:00:12]} 27. Qxe6+ {[%emt 0:00:17]} Kh8 {[%emt 0:00:31]} 28. Bxg7+ {[%emt 0:00:23]} Kxg7 {[%emt 0:00:28]} 29. Bxg6 {[%emt 0:00:51]} hxg6 {[%emt 0:00:20]} 30. Rxd5 {[%emt 0:00:22]} Bxd5 {[%emt 0:00:18]} 31. Qxd5 {[%emt 0:00:09]} Rad8 {[%emt 0:00:12]} 32. Qb3 {[%emt 0:00:59]} Qxf4 {[%emt 0:00:33]} 33. h3 {[%emt 0:00:28]} Qf2 {[%emt 0:00:31]} 34. Qc3+ {[%emt 0:00:17]} Qf6 {[%emt 0:01:08]} 35. Qxf6+ {[%emt 0:00:31]} Rxf6 {[%emt 0:00:56]} 36. Rc1 {[%emt 0:00:23]} Rd2 {[%emt 0:00:33]} 37. a4 {[%emt 0:00:51]} Rff2 {[%emt 0:00:22]} 38. Rg1 {[%emt 0:00:25]} Ra2 {[%emt 0:00:18]} 39. b5 {[%emt 0:00:27]} a5 {[%emt 0:00:14]} 40. Kh2 {[%emt 0:00:23]} Rxa4 {[%emt 0:00:08]} 41. Kg3 {[%emt 0:00:34]} Rb2 {[%emt 0:00:29]} 42. Rc1 {[%emt 0:00:38]} Rxb5 {[%emt 0:00:47]} 43. Rc7+ {[%emt 0:00:34]} Kh6 {[%emt 0:00:14]} 44. Rc8 {[%emt 0:00:26]} Rb3+ {[%emt 0:00:11]} 45. Kh2 {[%emt 0:00:10]} Ra2 {[%emt 0:00:07]} 46. Rc1 {[%emt 0:00:15]} a4 {[%emt 0:00:04]} 47. h4 {[%emt 0:01:04]} a3 {[%emt 0:00:16]} 48. Rf1 {[%emt 0:00:30]} Re2 {[%emt 0:00:45]} 49. Rd1 {[%emt 0:00:32]} a2 {[%emt 0:00:07]} 50. Rf1 {[%emt 0:00:24]} Rb1 {[%emt 0:00:10]} 51. Rh1 {[%emt 0:00:11]} Rxh1+ {[%emt 0:00:28]} 52. Kxh1 {[%emt 0:00:06]} a1=Q+ {[%emt 0:00:14]} 0-1

[Event "FIDE WCCC Girls-10 2024"]
[Site "Montesilvano"]
[Date "2024.11.19"]
[Round "5.19"]
[White "Milojevic, Dunja"]
[Black "Zhang, Weiai"]
[Result "0-1"]
[ECO "E12"]
[WhiteElo "1610"]
[BlackElo "1488"]
[Annotator "NA RC"]
[PlyCount "120"]
[EventDate "2024.11.18"]
[EventType "swiss"]
[EventCountry "ITA"]
[SourceTitle "playchess.com"]
[Source "ChessBase"]
[SourceQuality "1"]
[TimeControl "5400+30"]

1. d4 {[%emt 0:00:02]} d5 {[%emt 0:00:06]} 2. c4 {[%emt 0:00:05]} e6 {[%emt 0:00:05]} 3. Nc3 {[%emt 0:00:06]} Be7 {[%emt 0:00:05]} 4. Nf3 {[%emt 0:00:54]} Nf6 {[%emt 0:00:07]} 5. Bg5 {[%emt 0:00:48]} O-O {[%emt 0:00:10]} 6. e3 {[%emt 0:00:37]} b6 {[%emt 0:00:12]} 7. Bd3 {[%emt 0:01:43]} dxc4 {[%emt 0:00:08]} 8. Bxc4 {[%emt 0:00:11]} Bb7 {[%emt 0:00:07]} 9. O-O {[%emt 0:00:43]} Nbd7 {[%emt 0:00:12]} 10. Qe2 {[%emt 0:00:52]} Ne4 {[%emt 0:03:37]} 11. Nxe4 {[%emt 0:03:07]} Bxe4 {[%emt 0:00:09]} 12. Bxe7 {[%emt 0:00:48]} Qxe7 {[%emt 0:00:07]} 13. Rac1 {[%emt 0:00:40]} c5 {[%emt 0:01:06]} 14. Rfd1 {[%emt 0:01:53]} Rfd8 {[%emt 0:02:08]} 15. Nd2 {[%emt 0:02:34]} Bb7 {[%emt 0:00:30]} 16. Nb3 {[%emt 0:02:09]} Rac8 {[%emt 0:06:47]} 17. f3 {[%emt 0:04:27]} cxd4 {[%emt 0:05:50]} 18. Nxd4 {[%emt 0:00:44]} Nf6 {[%emt 0:01:49]} 19. a3 {[%emt 0:09:29]} Nd5 {[%emt 0:05:06]} 20. e4 {[%emt 0:06:25]} Nf4 {[%emt 0:01:37]} 21. Qf1 {[%emt 0:01:59]} Qg5 {[%emt 0:22:32]} 22. g3 {[%emt 0:10:58]} h6 {[%emt 0:16:58]} 23. Kh1 {[%emt 0:04:12]} Rxd4 {[%emt 0:07:56]} 24. Rxd4 {[%emt 0:07:33]} Ne2 {[%emt 0:00:33]} 25. f4 {[%emt 0:03:12]} Qc5 {[%emt 0:01:38]} 26. Bxe2 {[%emt 0:08:23]} Qxc1 {[%emt 0:00:38]} 27. Qxc1 {[%emt 0:03:32]} Rxc1+ {[%emt 0:00:07]} 28. Kg2 {[%emt 0:00:12]} Rc2 {[%emt 0:00:22]} 29. Kf1 {[%emt 0:03:19]} Rxb2 {[%emt 0:01:28]} 30. e5 {[%emt 0:01:28]} Bd5 {[%emt 0:00:42]} 31. f5 {[%emt 0:03:04]} Rb3 {[%emt 0:00:42]} 32. fxe6 {[%emt 0:01:02]} fxe6 {[%emt 0:00:09]} 33. Ra4 {[%emt 0:00:45]} a5 {[%emt 0:00:54]} 34. Bg4 {[%emt 0:05:48]} Re3 {[%emt 0:00:54]} 35. Kf2 {[%emt 0:01:09]} Rxe5 {[%emt 0:00:17]} 36. h4 {[%emt 0:01:34]} Kf8 {[%emt 0:01:26]} 37. Rd4 {[%emt 0:01:07]} Ke7 {[%emt 0:00:14]} 38. Bh3 {[%emt 0:00:56]} Re4 {[%emt 0:01:33]} 39. Rxe4 {[%emt 0:00:44]} Bxe4 {[%emt 0:00:05]} 40. Ke3 {[%emt 0:00:29]} Bd5 {[%emt 0:00:11]} 41. Bf1 {[%emt 0:00:21]} Kd6 {[%emt 0:00:13]} 42. Kd4 {[%emt 0:00:49]} e5+ {[%emt 0:00:25]} 43. Kc3 {[%emt 0:00:29]} Kc5 {[%emt 0:00:13]} 44. Be2 {[%emt 0:01:12]} b5 {[%emt 0:00:45]} 45. Bd1 {[%emt 0:00:30]} b4+ {[%emt 0:00:08]} 46. axb4+ {[%emt 0:00:08]} axb4+ {[%emt 0:00:03]} 47. Kb2 {[%emt 0:00:19]} e4 {[%emt 0:00:08]} 48. Kc1 {[%emt 0:00:32]} Kd4 {[%emt 0:00:12]} 49. Bc2 {[%emt 0:00:23]} b3 {[%emt 0:00:12]} 50. Bb1 {[%emt 0:00:15]} Kc3 {[%emt 0:00:09]} 51. g4 {[%emt 0:00:31]} e3 {[%emt 0:00:09]} 52. Kd1 {[%emt 0:00:22]} Bf3+ {[%emt 0:00:17]} 53. Ke1 {[%emt 0:00:16]} Kb2 {[%emt 0:00:12]} 54. Bf5 {[%emt 0:00:16]} Kc1 {[%emt 0:00:11]} 55. g5 {[%emt 0:00:28]} b2 {[%emt 0:00:10]} 56. Bg6 {[%emt 0:00:15]} b1=Q {[%emt 0:00:10]} 57. Bxb1 {[%emt 0:00:17]} Kxb1 {[%emt 0:00:03]} 58. Kf1 {[%emt 0:00:49]} e2+ {[%emt 0:00:07]} 59. Ke1 {[%emt 0:00:05]} Kc2 {[%emt 0:00:06]} 60. g6 {[%emt 0:00:42]} h5 {[%emt 0:00:09]} 0-1